fUSD/lending_fUSD_20250112
["ID","MTS","AMOUNT","RATE_DAILY","PERIOD"]
[348659251,1736701837604,-710.66,9.272e-05,2]
[348659253,1736701837621,-559.07,9.272e-05,2]
[348659256,1736701837631,-621.53,9.272e-05,2]
[348659258,1736701837642,-504.35,9.272e-05,2]
[348659260,1736701837652,-731.48,9.272e-05,2]
[348659262,1736701837662,-641.03,9.272e-05,2]
[348659264,1736701837673,-500.0,9.272e-05,2]
[348659266,1736701837683,-1262.88,9.272e-05,2]
[348659267,1736701837694,-503.35182754,9.272e-05,2]
[348659268,1736701837703,-910.41,9.272e-05,2]
[348659269,1736701837714,-900.73,9.272e-05,2]
[348659270,1736701837723,-500.0,9.272e-05,2]
[348659271,1736701837733,-544.37834561,9.272e-05,2]
[348659272,1736701837743,-747.75,9.272e-05,2]
[348659273,1736701837752,-500.0,9.272e-05,2]
[348659274,1736701837763,-500.0,9.272e-05,2]
[348659276,1736701837772,-500.0,9.272e-05,2]
[348659278,1736701837781,-500.0,9.272e-05,2]
[348659280,1736701837791,-500.0,9.272e-05,2]
[348659282,1736701837800,-500.0,9.272e-05,2]
[348659284,1736701837813,-500.0,9.272e-05,2]
[348659285,1736701837821,-1383.98,9.272e-05,2]
[348659288,1736701837831,-500.0,9.272e-05,2]
[348659290,1736701837840,-561.28,9.272e-05,2]
[348659292,1736701837849,-3001.09,9.272e-05,2]
[348659294,1736701837859,-505.65,9.272e-05,2]
[348659296,1736701837868,-1127.8,9.272e-05,2]
[348659298,1736701837878,-942.98,9.272e-05,2]
[348659300,1736701837887,-1065.76,9.272e-05,2]
[348659302,1736701837897,-3543.21,9.272e-05,2]
[348659304,1736701837906,-834.48,9.272e-05,2]
[348659306,1736701837916,-1111.55,9.272e-05,2]
[348659308,1736701837925,-596.89,9.272e-05,2]
[348659310,1736701837934,-408.78,9.272e-05,2]
[348659312,1736701837943,-500.0,9.272e-05,2]
[348659314,1736701837953,-3852.08,9.272e-05,2]
[348659316,1736701837962,-500.0,9.272e-05,2]
[348659318,1736701837972,-1617.3,9.272e-05,2]
[348659320,1736701837982,-570.26,9.272e-05,2]
[348659322,1736701837991,-500.0,9.272e-05,2]
[348659324,1736701838001,-934.55,9.272e-05,2]
[348659326,1736701838010,-1736.32,9.272e-05,2]
[348659329,1736701838021,-594.46,9.272e-05,2]
[348659331,1736701838030,-1931.88,9.272e-05,2]
[348659333,1736701838039,-500.0,9.272e-05,2]
[348659335,1736701838049,-7062.02,9.272e-05,2]
[348659337,1736701838059,-1264.15,9.272e-05,2]
[348659339,1736701838068,-500.0,9.272e-05,2]
[348659341,1736701838077,-2461.46,9.272e-05,2]
[348659343,1736701838087,-500.0,9.272e-05,2]
[348659345,1736701838096,-749.66,9.272e-05,2]
[348659347,1736701838106,-734.05,9.272e-05,2]
[348659349,1736701838115,-525.84,9.272e-05,2]
[348659377,1736701838324,-1084.43,9.272e-05,2]
[348659379,1736701838335,-1609.3,9.272e-05,2]
[348659381,1736701838344,-2059.27,9.272e-05,2]
[348659383,1736701838353,-1787.86,9.272e-05,2]
[348659385,1736701838363,-500.0,9.272e-05,2]
[348659387,1736701838372,-1787.86,9.272e-05,2]
[348659389,1736701838382,-1997.97,9.272e-05,2]
[348659391,1736701838391,-1016.934944,9.272e-05,2]
[348659393,1736701838400,-500.0,9.272e-05,2]
[348659395,1736701838410,-500.0,9.272e-05,2]
[348659397,1736701838419,-1133.24,9.272e-05,2]
[348659399,1736701838428,-500.0,9.272e-05,2]
[348659401,1736701838438,-2872.31,9.272e-05,2]
[348659403,1736701838448,-838.74,9.272e-05,2]
[348659405,1736701838457,-500.0,9.272e-05,2]
[348659407,1736701838467,-1212.43,9.272e-05,2]
[348659409,1736701838476,-3379.8,9.272e-05,2]
[348659411,1736701838486,-8274.81,9.272e-05,2]
[348659413,1736701838497,-941.30118,9.272e-05,2]
[348659415,1736701838506,-857.63,9.272e-05,2]
[348659417,1736701838516,-633.43,9.272e-05,2]
[348659419,1736701838525,-4185.07,9.272e-05,2]
[348659421,1736701838535,-2036.99,9.272e-05,2]
[348659423,1736701838544,-500.0,9.272e-05,2]
[348659425,1736701838555,-1694.65,9.272e-05,2]
[348659427,1736701838564,-978.89,9.272e-05,2]
[348659429,1736701838573,-500.0,9.272e-05,2]
[348659431,1736701838583,-1546.9,9.272e-05,2]
[348659433,1736701838592,-1024.54,9.272e-05,2]
[348659435,1736701838601,-1788.6,9.272e-05,2]
[348659437,1736701838611,-1788.6,9.272e-05,2]
[348659439,1736701838622,-949.06,9.272e-05,2]
[348659442,1736701838633,-2628.69,9.272e-05,2]
[348659443,1736701838645,-821.75,9.272e-05,2]
[348659445,1736701838655,-1220.28,9.272e-05,2]
[348659447,1736701838665,-897.57,9.272e-05,2]
[348659449,1736701838674,-661.29,9.272e-05,2]
[348659452,1736701838684,-957.41,9.272e-05,2]
[348659453,1736701838693,-548.28,9.272e-05,2]
[348659455,1736701838703,-6041.07,9.272e-05,2]
[348659458,1736701838713,-2143.17,9.273e-05,2]
[348659460,1736701838722,-2070.9,9.273e-05,2]
[348659461,1736701838731,-2594.55,9.273e-05,2]
[348659463,1736701838740,-500.0,9.273e-05,2]
[348659465,1736701838749,-1374.82,9.273e-05,2]
[348659466,1736701838758,-2079.49986011,9.273e-05,2]
[348659471,1736701838808,-915.196822,9.273e-05,2]
[348659473,1736701838820,-594.77331789,9.273e-05,2]
[348659475,1736701838830,-1614.55,9.273e-05,2]
[348659477,1736701838840,-1037.11,9.273e-05,2]
[348659479,1736701838850,-1042.12,9.273e-05,2]
[348659480,1736701838860,-543.61,9.273e-05,2]
[348659482,1736701838869,-880.54,9.273e-05,2]
[348659484,1736701838880,-966.88,9.273e-05,2]
[348659486,1736701838890,-1313.81,9.273e-05,2]
[348659488,1736701838898,-1087.44,9.273e-05,2]
[348659489,1736701838908,-1554.24,9.273e-05,2]
[348659491,1736701838917,-2002.47,9.273e-05,2]
[348659493,1736701838927,-1809.02,9.273e-05,2]
[348659495,1736701838937,-5814.91,9.273e-05,2]
[348659497,1736701838946,-3512.12,9.273e-05,2]
[348659498,1736701838956,-500.0,9.312e-05,2]
[348659500,1736701838965,-2258.82,9.312e-05,2]
[348659502,1736701838974,-2680.59,9.312e-05,2]
[348659504,1736701838984,-1897.18,9.312e-05,2]
[348659505,1736701838994,-500.0,9.312e-05,2]
[348659507,1736701839003,-1169.19,9.312e-05,2]
[348659509,1736701839013,-2825.14,9.312e-05,2]
[348659511,1736701839022,-500.0,9.312e-05,2]
[348659513,1736701839031,-500.0,9.312e-05,2]
[348659514,1736701839041,-1083.8,9.312e-05,2]
[348659516,1736701839050,-500.0,9.312e-05,2]
[348659518,1736701839061,-500.0,9.312e-05,2]
[348659520,1736701839071,-1529.31,9.312e-05,2]
[348659522,1736701839080,-500.0,9.312e-05,2]
[348659524,1736701839089,-551.85,9.312e-05,2]
[348659525,1736701839098,-898.16,9.312e-05,2]
[348659527,1736701839107,-710.99,9.312e-05,2]
[348659529,1736701839117,-1301.85422689,9.312e-05,2]
[348659531,1736701839128,-1309.09577311,9.312e-05,2]
[348659533,1736701839137,-880.6151479,9.408e-05,2]
[348659534,1736701839146,-500.0,9.544e-05,2]
[348659536,1736701839156,-500.0,9.544e-05,2]
[348659538,1736701839165,-500.0,9.544e-05,2]
[348659539,1736701839174,-606.66,9.544e-05,2]
[348659541,1736701839185,-500.0,9.544e-05,2]
[348659543,1736701839194,-500.0,9.544e-05,2]
[348659545,1736701839204,-500.0,9.544e-05,2]
[348659547,1736701839213,-500.0,9.544e-05,2]
[348659549,1736701839222,-500.0,9.544e-05,2]
[348659551,1736701839231,-872.72,9.544e-05,2]
[348659552,1736701839241,-714.49,9.544e-05,2]
[348659554,1736701839250,-582.68,9.544e-05,2]
[348659556,1736701839259,-658.45,9.544e-05,2]
[348659558,1736701839270,-500.0,9.544e-05,2]
[348659560,1736701839279,-762.41,9.544e-05,2]
[348659562,1736701839288,-524.2,9.544e-05,2]
[348659563,1736701839297,-538.02676724,9.544e-05,2]
[348659565,1736701839307,-500.0,9.544e-05,2]
[348659567,1736701839317,-500.0,9.544e-05,2]
[348659569,1736701839326,-500.0,9.544e-05,2]
[348659571,1736701839335,-500.0,9.544e-05,2]
[348659573,1736701839345,-593.37,9.544e-05,2]
[348659574,1736701839354,-771.02,9.544e-05,2]
[348659576,1736701839364,-500.0,9.544e-05,2]
[348659578,1736701839373,-500.0,9.544e-05,2]
[348659580,1736701839382,-500.0,9.544e-05,2]
[348659582,1736701839391,-739.53,9.544e-05,2]
[348659584,1736701839400,-500.0,9.544e-05,2]
[348659585,1736701839410,-500.0,9.544e-05,2]
[348659587,1736701839419,-500.0,9.544e-05,2]
[348659589,1736701839429,-605.87,9.544e-05,2]
[348659591,1736701839438,-500.0,9.544e-05,2]
[348659593,1736701839448,-732.56,9.544e-05,2]
[348659595,1736701839458,-622.15,9.544e-05,2]
[348659597,1736701839468,-504.98,9.544e-05,2]
[348659599,1736701839478,-500.0,9.544e-05,2]
[348659601,1736701839487,-500.0,9.544e-05,2]
[348659602,1736701839496,-500.0,9.544e-05,2]
[348659604,1736701839506,-1137.56,9.544e-05,2]
[348659606,1736701839516,-815.76,9.544e-05,2]
[348659608,1736701839525,-500.0,9.544e-05,2]
[348659610,1736701839535,-856.9,9.544e-05,2]
[348659612,1736701839544,-500.0,9.544e-05,2]
[348659614,1736701839554,-500.0,9.544e-05,2]
[348659615,1736701839563,-500.0,9.544e-05,2]
[348659617,1736701839572,-500.0,9.544e-05,2]
[348659619,1736701839582,-596.28,9.544e-05,2]
[348659621,1736701839591,-500.0,9.544e-05,2]
[348659623,1736701839601,-500.0,9.544e-05,2]
[348659625,1736701839611,-705.43,9.544e-05,2]
[348659627,1736701839621,-500.0,9.544e-05,2]
[348659629,1736701839630,-500.0,9.544e-05,2]
[348659630,1736701839640,-869.65,9.544e-05,2]
[348659632,1736701839650,-500.0,9.544e-05,2]
[348659634,1736701839659,-577.44,9.544e-05,2]
[348659636,1736701839668,-500.0,9.544e-05,2]
[348659638,1736701839678,-500.0,9.544e-05,2]
[348659640,1736701839688,-660.97,9.544e-05,2]
[348659642,1736701839697,-500.0,9.544e-05,2]
[348659643,1736701839706,-500.0,9.544e-05,2]
[348659645,1736701839715,-500.0,9.544e-05,2]
[348659647,1736701839724,-500.0,9.544e-05,2]
[348659649,1736701839734,-338.35049807,9.544e-05,2]
[348659651,1736701839743,-500.0,9.544e-05,2]
[348659653,1736701839752,-922.29,9.544e-05,2]
[348659655,1736701839762,-500.0,9.544e-05,2]
[348659657,1736701839771,-500.0,9.544e-05,2]
[348659658,1736701839780,-500.0,9.544e-05,2]
[348659660,1736701839789,-597.54,9.544e-05,2]
[348659662,1736701839799,-1048.72,9.544e-05,2]
[348659664,1736701839812,-500.0,9.544e-05,2]
[348659666,1736701839821,-500.0,9.544e-05,2]
[348659668,1736701839830,-374.96933046,9.544e-05,2]
[348659670,1736701839839,-811.85,9.544e-05,2]
[348659671,1736701839848,-761.23,9.544e-05,2]
[348659673,1736701839858,-500.0,9.544e-05,2]
[348659675,1736701839867,-500.0,9.544e-05,2]
[348659677,1736701839877,-519.77,9.544e-05,2]
[348659679,1736701839886,-725.5,9.544e-05,2]
[348659681,1736701839895,-545.62,9.544e-05,2]
[348659682,1736701839905,-766.58,9.544e-05,2]
[348659684,1736701839914,-736.91,9.544e-05,2]
[348659685,1736701839924,-500.0,9.544e-05,2]
[348659686,1736701839933,-500.0,9.544e-05,2]
[348659687,1736701839943,-500.0,9.544e-05,2]
[348659688,1736701839953,-499.62002217,9.544e-05,2]
[348659689,1736701839962,-616.48,9.544e-05,2]
[348659690,1736701839972,-500.0,9.544e-05,2]
[348659691,1736701839981,-500.0,9.544e-05,2]
[348659692,1736701839991,-500.0,9.544e-05,2]
[348659693,1736701840000,-4553.28,9.544e-05,2]
[348659694,1736701840009,-464.16164061,9.544e-05,2]
[348659695,1736701840020,-720.3,9.544e-05,2]
[348659697,1736701840029,-515.99,9.544e-05,2]
[348659698,1736701840038,-582.41,9.544e-05,2]
[348659700,1736701840048,-500.0,9.544e-05,2]
[348659702,1736701840057,-2803.41,9.544e-05,2]
[348659704,1736701840067,-754.53,9.544e-05,2]
[348659707,1736701840076,-483.21022185,9.544e-05,2]
[348659709,1736701840086,-943.14,9.544e-05,2]
[348659711,1736701840096,-714.22,9.544e-05,2]
[348659713,1736701840105,-608.67,9.544e-05,2]
[348659714,1736701840115,-3230.9859073,9.544e-05,2]
[348659787,1736701840791,-69.8040927,9.544e-05,2]
[348659790,1736701840805,-500.0,9.544e-05,2]
[348659792,1736701840819,-897.74,9.544e-05,2]
[348659794,1736701840830,-110.44583403,9.544e-05,2]
[348659797,1736701840843,-389.55416597,9.544e-05,2]
[348659799,1736701840855,-624.49,9.544e-05,2]
[348659801,1736701840865,-631.56,9.544e-05,2]
[348659803,1736701840876,-332.21171423,9.544e-05,2]
[348659808,1736701840915,-509.23828577,9.544e-05,2]
[348659810,1736701840927,-500.0,9.544e-05,2]
[348659812,1736701840938,-618.08,9.544e-05,2]
[348659815,1736701840950,-811.53,9.544e-05,2]
[348659817,1736701840961,-500.0,9.544e-05,2]
[348659819,1736701840973,-500.0,9.544e-05,2]
[348659822,1736701840985,-847.24,9.544e-05,2]
[348659824,1736701840996,-500.0,9.544e-05,2]
[348659826,1736701841009,-500.0,9.544e-05,2]
[348659828,1736701841021,-500.0,9.544e-05,2]
[348659831,1736701841033,-1102.58,9.544e-05,2]
[348659833,1736701841045,-500.0,9.544e-05,2]
[348659835,1736701841057,-500.0,9.544e-05,2]
[348659838,1736701841068,-696.41,9.544e-05,2]
[348659840,1736701841079,-500.0,9.544e-05,2]
[348659842,1736701841092,-525.19,9.544e-05,2]
[348659845,1736701841104,-1238.08,9.544e-05,2]
[348659847,1736701841116,-1424.05171423,9.544e-05,2]
[348659850,1736701841140,-449.23479685,9.544e-05,2]
[348659883,1736701841428,-497.18,9.27e-05,2]
[348659885,1736701841442,-65.71,9.27e-05,2]
[348659887,1736701841452,-424.58000001,9.544e-05,2]
[348659890,1736701841466,-1270.23348891,9.544e-05,2]
[348659892,1736701841477,-865.17,9.544e-05,2]
[348659894,1736701841487,-500.0,9.544e-05,2]
[348659896,1736701841498,-633.6,9.544e-05,2]
[348659898,1736701841508,-63.36218102,9.544e-05,2]
[348659901,1736701841522,-331.35511866,9.544e-05,2]
[348659904,1736701841543,-163.00270032,9.544e-05,2]
[348659906,1736701841555,-658.08,9.544e-05,2]
[348659908,1736701841566,-256.98639979,9.544e-05,2]
[348659910,1736701841576,-737.13,9.544e-05,2]
[348659913,1736701841587,-500.0,9.544e-05,2]
[348659915,1736701841598,-500.0,9.544e-05,2]
[348659917,1736701841608,-500.0,9.544e-05,2]
[348659919,1736701841619,-1117.49,9.545e-05,2]
[348659921,1736701841630,-647.73,9.545e-05,2]
[348659923,1736701841641,-500.0,9.545e-05,2]
[348659925,1736701841651,-962.95,9.545e-05,2]
[348659927,1736701841662,-1327.14,9.545e-05,2]
[348659930,1736701841673,-500.0,9.546e-05,2]
[348659932,1736701841683,-500.0,9.546e-05,2]
[348659934,1736701841694,-512.38,9.546e-05,2]
[348659936,1736701841704,-573.45,9.546e-05,2]
[348659938,1736701841715,-500.0,9.546e-05,2]
[348659940,1736701841726,-500.0,9.546e-05,2]
[348659943,1736701841737,-500.0,9.546e-05,2]
[348659945,1736701841748,-500.0,9.546e-05,2]
[348659947,1736701841758,-631.76,9.546e-05,2]
[348659949,1736701841769,-750.78,9.546e-05,2]
[348659951,1736701841779,-500.0,9.546e-05,2]
[348659953,1736701841790,-500.0,9.546e-05,2]
[348659955,1736701841801,-651.65,9.546e-05,2]
[348659958,1736701841817,-500.0,9.546e-05,2]
[348659960,1736701841828,-500.0,9.546e-05,2]
[348659962,1736701841838,-500.0,9.546e-05,2]
[348659964,1736701841850,-718.34,9.546e-05,2]
[348659966,1736701841860,-500.0,9.546e-05,2]
[348659968,1736701841872,-500.0,9.546e-05,2]
[348659971,1736701841883,-500.0,9.546e-05,2]
[348659973,1736701841894,-500.0,9.546e-05,2]
[348659975,1736701841904,-500.0,9.546e-05,2]
[348659977,1736701841915,-102.48056952,9.546e-05,2]
[348659980,1736701841929,-462.05943048,9.546e-05,2]
[348659982,1736701841939,-500.0,9.546e-05,2]
[348659984,1736701841950,-533.35,9.546e-05,2]
[348659986,1736701841962,-910.72,9.546e-05,2]
[348659988,1736701841973,-500.0,9.546e-05,2]
[348659990,1736701841984,-500.0,9.546e-05,2]
[348659992,1736701841995,-519.07,9.546e-05,2]
[348659995,1736701842005,-500.0,9.546e-05,2]
[348659997,1736701842017,-500.0,9.546e-05,2]
[348659999,1736701842027,-500.0,9.546e-05,2]
[348660001,1736701842039,-500.0,9.546e-05,2]
[348660003,1736701842050,-761.48,9.546e-05,2]
[348660005,1736701842060,-500.0,9.546e-05,2]
[348660008,1736701842072,-500.0,9.546e-05,2]
[348660010,1736701842082,-500.0,9.546e-05,2]
[348660012,1736701842094,-887.15,9.546e-05,2]
[348660014,1736701842105,-583.58,9.546e-05,2]
[348660016,1736701842117,-500.0,9.546e-05,2]
[348660018,1736701842128,-515.72,9.546e-05,2]
[348660021,1736701842139,-500.0,9.546e-05,2]
[348660023,1736701842149,-500.0,9.546e-05,2]
[348660025,1736701842160,-596.96,9.546e-05,2]
[348660027,1736701842171,-500.0,9.546e-05,2]
[348660029,1736701842182,-541.17641048,9.546e-05,2]
[348660031,1736701842193,-500.0,9.546e-05,2]
[348660034,1736701842205,-672.87,9.546e-05,2]
[348660036,1736701842215,-500.0,9.546e-05,2]
[348660038,1736701842226,-684.54,9.546e-05,2]
[348660040,1736701842236,-500.0,9.546e-05,2]
[348660042,1736701842247,-640.12,9.546e-05,2]
[348660044,1736701842258,-500.0,9.546e-05,2]
[348660046,1736701842268,-671.66,9.546e-05,2]
[348660049,1736701842280,-500.0,9.546e-05,2]
[348660051,1736701842290,-500.0,9.546e-05,2]
[348660053,1736701842300,-517.81,9.546e-05,2]
[348660055,1736701842311,-500.0,9.546e-05,2]
[348660057,1736701842322,-529.29,9.546e-05,2]
[348660059,1736701842334,-500.0,9.546e-05,2]
[348660061,1736701842345,-753.72,9.546e-05,2]
[348660064,1736701842356,-500.0,9.546e-05,2]
[348660066,1736701842367,-1253.0,9.546e-05,2]
[348660068,1736701842377,-500.0,9.546e-05,2]
[348660070,1736701842389,-798.04,9.546e-05,2]
[348660072,1736701842400,-500.0,9.546e-05,2]
[348660075,1736701842411,-500.0,9.546e-05,2]
[348660077,1736701842422,-1128.2,9.546e-05,2]
[348660079,1736701842433,-500.0,9.546e-05,2]
[348660081,1736701842444,-500.0,9.546e-05,2]
[348660083,1736701842455,-500.0,9.546e-05,2]
[348660084,1736701842466,-892.96,9.546e-05,2]
[348660085,1736701842476,-576.09,9.546e-05,2]
[348660087,1736701842486,-1540.9,9.546e-05,2]
[348660089,1736701842497,-1323.78,9.546e-05,2]
[348660090,1736701842508,-500.0,9.546e-05,2]
[348660091,1736701842519,-500.0,9.546e-05,2]
[348660092,1736701842529,-500.0,9.546e-05,2]
[348660094,1736701842540,-500.0,9.546e-05,2]
[348660097,1736701842551,-500.0,9.546e-05,2]
[348660099,1736701842562,-792.99,9.546e-05,2]
[348660102,1736701842572,-710.66,9.546e-05,2]
[348660106,1736701842583,-621.53,9.546e-05,2]
[348660109,1736701842595,-504.35,9.546e-05,2]
[348660112,1736701842606,-731.48,9.546e-05,2]
[348660114,1736701842619,-1262.88,9.546e-05,2]
[348660116,1736701842629,-910.41,9.546e-05,2]
[348660118,1736701842640,-900.73,9.546e-05,2]
[348660120,1736701842652,-747.75,9.546e-05,2]
[348660123,1736701842663,-500.0,9.546e-05,2]
[348660125,1736701842675,-500.0,9.546e-05,2]
[348660127,1736701842685,-500.0,9.546e-05,2]
[348660129,1736701842696,-638.01230234,9.546e-05,2]
[348660131,1736701842707,-500.0,9.546e-05,2]
[348660133,1736701842717,-500.0,9.546e-05,2]
[348660136,1736701842728,-500.0,9.546e-05,2]
[348660138,1736701842739,-1383.98,9.546e-05,2]
[348660140,1736701842750,-500.0,9.546e-05,2]
[348660142,1736701842761,-561.28,9.546e-05,2]
[348660144,1736701842771,-3001.09,9.546e-05,2]
[348660146,1736701842780,-1127.8,9.546e-05,2]
[348660148,1736701842791,-505.65,9.546e-05,2]
[348660150,1736701842801,-942.98,9.546e-05,2]
[348660152,1736701842816,-1065.76,9.546e-05,2]
[348660155,1736701842827,-834.48,9.546e-05,2]
[348660157,1736701842837,-3543.21,9.546e-05,2]
[348660159,1736701842850,-1111.55,9.546e-05,2]
[348660161,1736701842859,-596.89,9.546e-05,2]
[348660163,1736701842870,-500.0,9.546e-05,2]
[348660165,1736701842881,-3295.57078123,9.546e-05,2]
[348660248,1736701843650,-556.50921877,9.546e-05,2]
[348660251,1736701843668,-500.0,9.546e-05,2]
[348660253,1736701843678,-1617.3,9.546e-05,2]
[348660255,1736701843687,-570.26,9.546e-05,2]
[348660257,1736701843696,-500.0,9.546e-05,2]
[348660259,1736701843706,-934.55,9.546e-05,2]
[348660261,1736701843715,-1736.32,9.546e-05,2]
[348660263,1736701843723,-594.46,9.546e-05,2]
[348660265,1736701843732,-1931.88,9.546e-05,2]
[348660267,1736701843741,-500.0,9.546e-05,2]
[348660268,1736701843751,-7062.02,9.546e-05,2]
[348660270,1736701843760,-500.0,9.546e-05,2]
[348660272,1736701843769,-1264.15,9.546e-05,2]
[348660274,1736701843778,-2461.46,9.546e-05,2]
[348660276,1736701843787,-749.66,9.546e-05,2]
[348660278,1736701843796,-734.05,9.546e-05,2]
[348660280,1736701843806,-525.84,9.546e-05,2]
[348660282,1736701843817,-1084.43,9.546e-05,2]
[348660284,1736701843825,-1609.3,9.546e-05,2]
[348660286,1736701843834,-2059.27,9.546e-05,2]
[348660288,1736701843843,-1787.86,9.546e-05,2]
[348660290,1736701843852,-500.0,9.546e-05,2]
[348660292,1736701843861,-1787.86,9.546e-05,2]
[348660294,1736701843870,-1997.97,9.546e-05,2]
[348660296,1736701843879,-1016.934944,9.546e-05,2]
[348660298,1736701843888,-500.0,9.546e-05,2]
[348660299,1736701843897,-500.0,9.546e-05,2]
[348660301,1736701843907,-1133.24,9.546e-05,2]
[348660303,1736701843916,-500.0,9.546e-05,2]
[348660305,1736701843926,-2872.31,9.546e-05,2]
[348660307,1736701843935,-838.74,9.546e-05,2]
[348660309,1736701843943,-500.0,9.546e-05,2]
[348660311,1736701843952,-1212.43,9.546e-05,2]
[348660313,1736701843962,-3379.8,9.546e-05,2]
[348660315,1736701843971,-8274.81,9.546e-05,2]
[348660317,1736701843980,-941.30118,9.546e-05,2]
[348660319,1736701843989,-857.63,9.546e-05,2]
[348660321,1736701843998,-633.43,9.546e-05,2]
[348660323,1736701844007,-4185.07,9.546e-05,2]
[348660325,1736701844016,-2036.99,9.546e-05,2]
[348660327,1736701844025,-500.0,9.546e-05,2]
[348660329,1736701844034,-1694.65,9.546e-05,2]
[348660331,1736701844043,-978.89,9.546e-05,2]
[348660333,1736701844052,-500.0,9.546e-05,2]
[348660335,1736701844061,-1546.9,9.546e-05,2]
[348660337,1736701844071,-1024.54,9.546e-05,2]
[348660339,1736701844080,-1788.6,9.546e-05,2]
[348660341,1736701844089,-1788.6,9.546e-05,2]
[348660343,1736701844100,-949.06,9.546e-05,2]
[348660345,1736701844109,-2628.69,9.546e-05,2]
[348660347,1736701844118,-821.75,9.546e-05,2]
[348660349,1736701844127,-1220.28,9.546e-05,2]
[348660350,1736701844136,-661.29,9.546e-05,2]
[348660352,1736701844145,-897.57,9.546e-05,2]
[348660354,1736701844154,-957.41,9.546e-05,2]
[348660356,1736701844163,-548.28,9.546e-05,2]
[348660358,1736701844172,-6041.07,9.546e-05,2]
[348660360,1736701844181,-2143.17,9.547e-05,2]
[348660362,1736701844190,-2070.9,9.547e-05,2]
[348660364,1736701844199,-2594.55,9.547e-05,2]
[348660366,1736701844208,-500.0,9.547e-05,2]
[348660368,1736701844217,-1374.82,9.547e-05,2]
[348660370,1736701844226,-3589.47,9.547e-05,2]
[348660372,1736701844236,-1614.55,9.547e-05,2]
[348660374,1736701844245,-1037.11,9.547e-05,2]
[348660376,1736701844255,-1042.12,9.547e-05,2]
[348660378,1736701844265,-543.61,9.547e-05,2]
[348660380,1736701844274,-880.54,9.547e-05,2]
[348660382,1736701844284,-966.88,9.547e-05,2]
[348660384,1736701844293,-1313.81,9.547e-05,2]
[348660386,1736701844302,-1087.44,9.547e-05,2]
[348660388,1736701844311,-1554.24,9.547e-05,2]
[348660390,1736701844320,-2002.47,9.547e-05,2]
[348660392,1736701844329,-388.38899049,9.547e-05,2]
[348660442,1736701844814,1000.0,8.965e-05,2]
[348660443,1736701844872,-631.9,9.27e-05,2]
[348660444,1736701844882,-5.6221,9.547e-05,2]
[348660445,1736701844901,-1415.00890951,9.547e-05,2]
[348660447,1736701844910,-3512.12,9.547e-05,2]
[348660449,1736701844919,-500.0,9.586e-05,2]
[348660451,1736701844928,-2258.82,9.586e-05,2]
[348660453,1736701844938,-2680.59,9.586e-05,2]
[348660455,1736701844946,-1897.18,9.586e-05,2]
[348660457,1736701844956,-500.0,9.586e-05,2]
[348660459,1736701844965,-1169.19,9.586e-05,2]
[348660461,1736701844974,-2825.14,9.586e-05,2]
[348660463,1736701844983,-500.0,9.586e-05,2]
[348660465,1736701844992,-1083.8,9.586e-05,2]
[348660467,1736701845001,-500.0,9.586e-05,2]
[348660469,1736701845011,-1529.31,9.586e-05,2]
[348660471,1736701845019,-551.85,9.586e-05,2]
[348660473,1736701845029,-898.16,9.586e-05,2]
[348660475,1736701845039,-710.99,9.586e-05,2]
[348660477,1736701845048,-2610.95,9.586e-05,2]
[348660479,1736701845057,-500.0,9.616e-05,2]
[348660481,1736701845067,-787.15238547,9.658e-05,2]
[348660483,1736701845076,-8612.8595,9.72e-05,2]
[348660485,1736701845085,-500.0,9.797e-05,2]
[348660487,1736701845094,-500.0,9.818e-05,2]
[348660489,1736701845103,-500.0,9.818e-05,2]
[348660491,1736701845113,-500.0,9.818e-05,2]
[348660493,1736701845123,-500.0,9.818e-05,2]
[348660495,1736701845132,-500.0,9.818e-05,2]
[348660497,1736701845141,-500.0,9.818e-05,2]